[Event "USA Championship Women 2022"]
[Site "Saint Louis"]
[Date "2022.10.11"]
[Round "6.2"]
[White "Abrahamyan, Tatev"]
[Black "Eswaran, Ashritha"]
[Result "0-1"]
[ECO "B33"]
[WhiteElo "2308"]
[BlackElo "2365"]
[Annotator "TA"]
[PlyCount "86"]
[EventDate "2022.09.05"]
[EventType "tourn"]
[EventCountry "USA"]
[SourceTitle "playchess.com"]
[Source "ChessBase"]
[SourceQuality "1"]
[TimeControl "40/5400+30:1800+30"]

{[%evp 20,86,32,1,0,4,16,0,0,0,0,0,0,0,8,6,10,-7,20,25,20,27,29,25,19,-48,0,0,0,0,0,-6,32,-186,-202,-158,-144,-231,-170,-205,-172,-371,-364,-520,-183,-171,-122,-169,-162,-268,-262,-270,-267,-273,-229,-339,-319,-333,-312,-549,-549,-543,-543,-542,-507,-506,-500,-458,-446]} 1. e4 {[%emt 0:00:06]} c5 {[%emt 0:00:19]} 2. Nf3 {[%emt 0:00:06][%cal Bg1f3,Bf3d4,Bd4b5,Bb5a3,Ba3c2][%mdl 32]} Nc6 {[%emt 0:00:21]} 3. d4 {[%emt 0:00:07]} cxd4 {[%emt 0:00:06]} 4. Nxd4 {[%emt 0:00:02]} Nf6 {[%emt 0:00:12]} 5. Nc3 {[%emt 0:00:09]} e5 {[%emt 0:00:09]} 6. Ndb5 {[%emt 0:01:04]} d6 {[%emt 0:00:22]} 7. Bg5 {[%emt 0:07:56]} a6 {[%emt 0:00:08]} 8. Na3 {[%emt 0:00:07]} b5 {[%emt 0:00:14]} 9. Nd5 {[%emt 0:02:11]} Be7 {[%emt 0:00:12]} 10. Bxf6 {[%emt 0:00:29]} Bxf6 {[%emt 0:00:06]} 11. c4 {[%emt 0:03:05]} b4 {[%emt 0:00:18] B33: Sicilian: Pelikan and Sveshnikov Variations.} 12. Nc2 {[%emt 0:00:08]} O-O {[%emt 0:00:22] seems to push 12...a5 aside.} 13. Qf3 {[%emt 0:06:28]} Bg5 {[%emt 0:00:24] The position is equal.} 14. h4 {[%emt 0:00:54]} Bh6 {[%emt 0:00:07]} 15. g4 {[%emt 0:00:13] Against f5. g5 is the strong threat.} f6 {[%emt 0:00:07] Prevents g5.} 16. Be2 {[%emt 0:00:13]} a5 {[%emt 0:00:33]} 17. Rd1 {[%emt 0:03:20]} Be6 {[%emt 0:01:55]} 18. Rg1 {[%emt 0:17:55]} Ra7 {[%emt 0:01:35]} 19. Qg3 {[%emt 0:09:48] [#] Strongly threatening g5.} g6 $146 {[%emt 0:01:23]} ({Predecessor:} 19... Bxd5 20. exd5 Bf4 21. Qf3 Nb8 22. Nd4 exd4 23. Qxf4 Re7 24. Kf1 Na6 25. Qxd4 Nc5 {0-1 (50) Briand,A (2014)-Harish,N (1477) Biel 2021}) 20. Rh1 {[%emt 0:04:16]} Bf7 {[%emt 0:01:25]} 21. h5 {[%emt 0:07:00]} gxh5 {[%emt 0:01:44]} 22. Nde3 {[%emt 0:10:31]} (22. Nce3 $11) 22... Rd7 {[%emt 0:13:32]} (22... Bxe3 $15 {is superior.} 23. Qxe3 hxg4) 23. gxh5+ $11 {[%emt 0:04:53]} Kh8 {[%emt 0:00:18]} 24. Bg4 {[%emt 0:00:41]} Bf4 {[%emt 0:02:05]} 25. Qf3 {[%emt 0:02:34]} Rc7 {[%emt 0:02:00]} 26. c5 $2 {[%emt 0:04:23]} (26. b3 $14 {keeps the upper hand.}) 26... b3 $19 {[%emt 0:02:20]} (26... Bxa2 27. cxd6 Rb7 28. Ng2 $15) 27. axb3 {[%emt 0:02:21]} Bxb3 {[%emt 0:00:25] aiming for ...Bxe3.} 28. Rxd6 {[%emt 0:05:23]} (28. Qe2 $17 {might work better.}) 28... Qb8 {[%emt 0:00:08] White must now prevent ...Bxe3.} 29. Qe2 {[%emt 0:06:03]} Nb4 {[%emt 0:05:54]} 30. Rb6 $2 {[%emt 0:00:31]} (30. Nxb4 Qxb4+ 31. Qd2 Qxe4 32. Rh4) 30... Nxc2+ $1 {[%emt 0:01:31]} 31. Kf1 {[%emt 0:01:54]} (31. Nxc2 $142 Qxb6 32. cxb6 Rxc2 33. Qd1) 31... Qe8 $2 {[%emt 0:06:24]} (31... Nxe3+ 32. fxe3 Bc4 $1 {[%mdl 512]} 33. Rxb8 (33. Qxc4 $2 Qxb6 34. cxb6 Rxc4 $19) 33... Bxe2+ 34. Kxe2 Rxb8 35. exf4 Rxb2+ 36. Kf3 Rb3+ 37. Ke2 exf4) 32. Nxc2 {[%emt 0:00:31]} (32. Rxb3 $2 Nd4 33. Qd3 Nxb3 34. Qxb3 Rxc5 $19) 32... Qa4 {[%emt 0:00:06]} ({Black should play} 32... a4 $1 $19 33. Na1 Bf7) 33. Ne3 {[%emt 0:00:32]} (33. Na3 $17) 33... Qxe4 {[%emt 0:02:13][%cal Re4h1]} 34. Bf3 {[%emt 0:00:46]} (34. Qf3 $142 Bc2 35. Nxc2 Qxc2 36. Qc3) 34... Qb1+ $1 {[%emt 0:00:31]} 35. Kg2 {[%emt 0:00:30]} Rg7+ $1 {[%emt 0:00:30]} 36. Ng4 {[%emt 0:00:27] [#]} Qa2 {[%emt 0:00:35]} 37. Qd3 {[%emt 0:00:31] [#] Against Bd5} (37. Kh3 {was forced.}) 37... Be6 $1 {[%emt 0:00:19] A strong pair of Bishops.} 38. Qd6 {[%emt 0:00:24]} Re8 {[%emt 0:00:50] Chess con chili.} 39. Rb8 $2 {[%emt 0:00:40]} (39. h6 Rg6 40. Rb8 Rxb8 41. Qxb8+ Rg8 42. Qd6) 39... Rxb8 {[%emt 0:00:33] Black is clearly winning.} 40. Qxb8+ {[%emt 0:00:05]} Rg8 {[%emt 0:00:03]} 41. Qd6 {[%emt 0:11:19]} f5 {[%emt 0:00:43]} (41... Rxg4+ 42. Bxg4 Bxg4 43. Qf8+ (43. Qxf6+ Kg8 $15) 43... Qg8 44. Qxf6+ Qg7 45. Qd8+ Qg8 46. Qxg8+ (46. Qf6+ Qg7 $14) 46... Kxg8 47. Ra1 $14) 42. Ra1 {[%emt 0:03:49]} Qc4 {[%emt 0:01:01]} (42... Qxa1 43. Qxe6 Qxb2 44. Qf6+ Rg7 45. Qf8+ Rg8 46. Qf6+ Rg7 47. Qf8+ Rg8 48. Qf6+ $11) (42... fxg4 43. Rxa2 gxf3+ 44. Kxf3 Bxa2 45. Qf6+ Rg7 46. h6 Bxh6 47. Qxh6 $18) (42... Rxg4+ $2 43. Bxg4 Qd5+ 44. Bf3 Qxd6 45. cxd6 $18) 43. Ra4 {[%emt 0:12:24]} e4 {[%emt 0:00:26] Weighted Error Value: White=0.48/Black=0.16 (very precise)} ({Stronger than} 43... Qxa4 44. Qxe6 Qe8 45. Qf6+ Rg7 46. Qxf5 $15) ({Much less strong is} 43... fxg4 44. Rxc4 gxf3+ 45. Kxf3 Bxc4 46. Qf6+ Rg7 47. h6 Bxh6 48. Qxh6 $18) ({But not} 43... Rxg4+ 44. Bxg4 Qd5+ 45. Qxd5 Bxd5+ 46. Bf3 $18) 0-1

[Event "USA Championship Women 2022"]
[Site "Saint Louis"]
[Date "2022.10.11"]
[Round "6.3"]
[White "Foisor, Sabina-Francesca"]
[Black "Lee, Megan"]
[Result "0-1"]
[ECO "D30"]
[WhiteElo "2203"]
[BlackElo "2226"]
[Annotator "TA"]
[PlyCount "142"]
[EventDate "2022.09.05"]
[EventType "tourn"]
[EventCountry "USA"]
[SourceTitle "playchess.com"]
[Source "ChessBase"]
[SourceQuality "1"]
[TimeControl "40/5400+30:1800+30"]

{[%evp 17,142,27,35,22,29,27,33,27,21,0,24,15,17,0,32,48,76,-10,-16,-10,-10,-8,29,27,27,29,29,26,35,26,36,0,34,34,37,15,26,0,0,0,0,0,0,0,0,0,0,-34,-34,-25,0,-14,0,0,12,-76,0,-189,-210,-311,-278,-317,-299,-512,-387,-454,-420,-757,-735,-752,-742,-730,-725,-1112,-1075,-1023,-1020,-992,-977,-925,-909,-1162,-1148,-1415,-1414,-1339,-1352,-1188,-1162,-1166,-1156,-1137,-1062,-6311,-4920,-29972,-29971,-12796,-11902,-3641,-4161,-29976,-29976,-29979,-29980,-29980,-29981,-29979,-29980,-29979,-29979,-29988,-29989,-29989,-29990,-29990,-29991,-29990,-29991,-29993,-29994,-29994,-29995,-29995,-29996,-29996,-1135]} 1. d4 {[%emt 0:00:03]} d5 {[%emt 0:00:04]} 2. Nf3 {[%emt 0:00:05]} Nf6 {[%emt 0:00:05]} 3. e3 {[%emt 0:00:04]} c6 {[%emt 0:01:23]} 4. Bd3 {[%emt 0:00:09]} e6 {[%emt 0:05:27]} 5. b3 {[%emt 0:00:17]} Nbd7 {[%emt 0:05:30]} 6. Bb2 {[%emt 0:00:39]} Bb4+ {[%emt 0:06:01]} 7. c3 {[%emt 0:04:17]} Bd6 {[%emt 0:00:32]} 8. c4 {[%emt 0:06:14]} Ne4 {[%emt 0:03:28]} 9. O-O {[%emt 0:10:48]} O-O {[%emt 0:04:34]} 10. Ne5 {[%emt 0:07:33] D30: Queen's Gambit Declined: Systems without Nc3.} f6 {[%emt 0:10:33]} 11. Nxd7 {[%emt 0:05:08]} Bxd7 {[%emt 0:00:22][%cal Bc8d7,Bd7e8,Be8h5][%mdl 32]} 12. f3 {[%emt 0:01:50] White is slightly better.} Ng5 {[%emt 0:01:02][%cal Be4g5,Bg5h3,Bh3f4][%mdl 32]} 13. Nd2 {[%emt 0:06:55]} f5 {[%emt 0:08:21] [#]} 14. Qe2 $146 {[%emt 0:07:02]} ({Predecessor:} 14. g3 Rf6 15. Kg2 Rh6 16. Rh1 f4 17. h4 fxe3 18. Nf1 Nf7 19. Nxe3 Qc7 20. f4 c5 21. cxd5 exd5 {1-0 (32) Balog,I (2513)-Ratkovic,M (2081) Sombor 2010}) 14... Be8 {[%emt 0:03:28]} 15. e4 {[%emt 0:09:46]} Bh5 {[%emt 0:06:44]} 16. e5 {[%emt 0:03:57]} Bb4 {[%emt 0:05:27][%cal Og5h3]} 17. a3 {[%emt 0:06:24] [#]} ({Better is} 17. Nb1 $16) 17... Nh3+ $1 $11 {[%emt 0:01:06]} 18. Kh1 {[%emt 0:00:20]} Nf4 {[%emt 0:00:51]} 19. Qe3 $132 {[%emt 0:00:01][%mdl 2048] White is not keeping still} Bxd2 {[%emt 0:04:18]} ({Don't play} 19... Qg5 20. g3 Bxd2 21. Qxd2 $16) 20. Qxd2 {[%emt 0:00:05]} Nxd3 {[%emt 0:00:25]} 21. Qxd3 {[%emt 0:00:06]} f4 {[%emt 0:00:09]} 22. a4 {[%emt 0:02:49]} Bg6 {[%emt 0:04:55]} 23. Qd2 {[%emt 0:00:48]} Qh4 {[%emt 0:01:09]} 24. Qf2 {[%emt 0:01:32]} Qh6 {[%emt 0:00:57]} 25. cxd5 {[%emt 0:04:20]} exd5 {[%emt 0:05:08]} 26. Bc1 {[%emt 0:03:14]} Rae8 {[%emt 0:05:58][%cal Ba8e8,Be8e6,Be6g6,Bg6g3][%mdl 32]} 27. a5 {[%emt 0:03:53]} Bd3 {[%emt 0:07:23]} 28. Rg1 {[%emt 0:02:06]} Qh5 {[%emt 0:02:01]} 29. Re1 {[%emt 0:04:18]} Re6 {[%emt 0:00:54]} 30. Ra2 {[%emt 0:02:07]} Rf5 {[%emt 0:03:44]} 31. Rd2 {[%emt 0:01:43]} Bb5 {[%emt 0:00:37]} 32. Qg1 {[%emt 0:01:18]} Qf7 {[%emt 0:00:25]} 33. Rf2 {[%emt 0:02:08]} Rg6 {[%emt 0:01:18]} 34. h3 {[%emt 0:02:36]} Kf8 {[%emt 0:02:02]} 35. Ba3+ {[%emt 0:01:48]} Ke8 {[%emt 0:00:01]} 36. Rd2 {[%emt 0:01:15]} (36. Ra1 $11) 36... Qe6 {[%emt 0:00:19]} (36... Rh5 $17) 37. Qh2 $2 {[%emt 0:00:29] [#] White is on the road to losing.} (37. Ra1 $1 $11 {and White stays safe.}) 37... Rg3 $1 $19 {[%emt 0:00:13]} 38. Bc1 {[%emt 0:00:25] [#]} (38. Bc5 $142) 38... Rh5 $1 {[%emt 0:00:12]} 39. Ra2 {[%emt 0:00:45]} g5 {[%emt 0:00:06][%cal Og3f3]} 40. Bd2 $2 {[%emt 0:00:28]} (40. Ba3) 40... Bd3 {[%emt 0:00:49]} 41. a6 {[%emt 0:30:37]} Bxa6 {[%emt 0:02:56]} 42. Rc1 {[%emt 0:00:00]} (42. Bc1 $142) 42... Qf5 {[%emt 0:02:38] Hoping for ...Qd3.} 43. Be1 {[%emt 0:00:00] [#]} Rgxh3 $1 {[%emt 0:00:24][%mdl 512]} 44. gxh3 {[%emt 0:00:00]} Rxh3 {[%emt 0:00:07]} 45. Rxa6 {[%emt 0:00:00]} Rxh2+ {[%emt 0:01:28]} 46. Kxh2 {[%emt 0:00:00]} bxa6 {[%emt 0:00:18]} 47. Rxc6 {[%emt 0:00:00][%mdl 4096] Endgame KQ-KRB} Qd3 {[%emt 0:02:23] White must now prevent ...Qe2+.} 48. Kg2 {[%emt 0:00:00]} Qxd4 {[%emt 0:03:22]} 49. e6 {[%emt 0:00:00]} Qb2+ {[%emt 0:01:59]} 50. Bf2 {[%emt 0:00:00]} d4 {[%emt 0:01:18] Threatens to win with ...d3.} 51. Rd6 {[%emt 0:00:00]} Ke7 {[%emt 0:00:18]} 52. Rxd4 {[%emt 0:00:00]} Kxe6 {[%emt 0:00:06]} 53. Ra4 {[%emt 0:00:00]} Qxb3 {[%emt 0:03:41]} 54. Rxa6+ {[%emt 0:00:00]} Ke5 {[%emt 0:01:22]} 55. Rxa7 {[%emt 0:00:00]} Qd3 {[%emt 0:00:26]} 56. Ra5+ {[%emt 0:00:49]} Kf6 {[%emt 0:00:11]} 57. Ra4 {[%emt 0:01:00]} h5 {[%emt 0:00:17][%cal Bh7h5,Bh5h4,Bh4h3][%mdl 32]} 58. Rd4 {[%emt 0:00:44]} Qa3 {[%emt 0:00:34] ( -> ...h4)} 59. Rc4 {[%emt 0:01:01]} h4 {[%emt 0:00:46] Black mates.} 60. Bd4+ {[%emt 0:02:37]} Ke6 {[%emt 0:00:34]} 61. Rc3 {[%emt 0:00:41]} Qa2+ {[%emt 0:00:18]} 62. Kh3 {[%emt 0:00:10]} Qe2 {[%emt 0:00:19]} 63. Ra3 {[%emt 0:01:08]} Qf1+ {[%emt 0:00:24]} 64. Kh2 {[%emt 0:00:24]} h3 {[%emt 0:00:07][%csl Gh3][%cal Rf1g2]} 65. Ra2 {[%emt 0:00:52]} Qxf3 {[%emt 0:00:17]} 66. Rf2 {[%emt 0:01:28]} Qd3 {[%emt 0:01:22]} 67. Ba7 {[%emt 0:00:25]} Kf5 {[%emt 0:00:23]} 68. Kh1 {[%emt 0:00:41]} g4 {[%emt 0:00:26][%cal Bg5g4,Bg4g3][%mdl 32]} 69. Kg1 {[%emt 0:00:42]} g3 {[%emt 0:01:07]} 70. Rf1 {[%emt 0:00:05]} h2+ {[%emt 0:00:14]} 71. Kg2 {[%emt 0:00:04]} Qxf1+ {[%emt 0:00:25] Weighted Error Value: White=0.79/Black=0.12 (very precise)} 0-1

[Event "USA Championship Women 2022"]
[Site "Saint Louis"]
[Date "2022.10.11"]
[Round "6.4"]
[White "Krush, Irina"]
[Black "Cervantes Landeiro, Thalia"]
[Result "1-0"]
[ECO "A22"]
[WhiteElo "2432"]
[BlackElo "2272"]
[Annotator "TA"]
[PlyCount "81"]
[EventDate "2022.09.05"]
[EventType "tourn"]
[EventCountry "USA"]
[SourceTitle "playchess.com"]
[Source "ChessBase"]
[SourceQuality "1"]
[TimeControl "40/5400+30:1800+30"]

{[%evp 14,80,30,8,37,30,30,32,46,42,39,8,78,89,99,12,29,27,31,18,49,0,0,0,3,0,-8,-15,0,10,33,70,69,72,158,75,81,92,102,86,94,87,108,88,364,361,644,636,617,597,543,452,606,606,583,581,491,434,1152,1126,6612,3686,29987,29983,29991,29992,29996,29997,29999]} 1. c4 {[%emt 0:05:51]} e5 {[%emt 0:00:15]} 2. Nc3 {[%emt 0:00:11]} Bb4 {[%emt 0:00:16]} 3. g3 {[%emt 0:00:41]} Nf6 {[%emt 0:02:01]} 4. Bg2 {[%emt 0:00:22]} O-O {[%emt 0:03:22]} 5. e4 {[%emt 0:05:15]} Bxc3 {[%emt 0:04:19]} 6. bxc3 {[%emt 0:01:18]} d6 {[%emt 0:02:03]} 7. d3 {[%emt 0:02:38]} h6 {[%emt 0:04:08]} 8. Nf3 {[%emt 0:02:20]} Bg4 {[%emt 0:09:50] [#] A22: English Opening: 1...e5 2 Nc3 Nf6.} 9. h3 $146 {[%emt 0:00:52]} ({Predecessor:} 9. O-O Qd7 10. Qb3 c5 11. Rb1 b6 12. Be3 Nc6 13. Rb2 Rfe8 14. Nh4 Kh7 15. Qa4 Rac8 16. f4 exf4 17. gxf4 {0-1 (28) Giese,T (2101)-Lisanti,A (2248) Germany 2016}) 9... Be6 {[%emt 0:00:30]} 10. O-O {[%emt 0:00:55]} a6 {[%emt 0:08:51] White is slightly better.} 11. a4 {[%emt 0:02:48] Against b5} a5 {[%emt 0:02:50]} 12. c5 {[%emt 0:06:57]} dxc5 {[%emt 0:15:10]} (12... Na6 $11) 13. Nxe5 $16 {[%emt 0:00:16]} Nbd7 {[%emt 0:01:24]} 14. f4 {[%emt 0:06:44]} (14. Nf3 $16) 14... Nxe5 $11 {[%emt 0:04:19]} 15. fxe5 {[%emt 0:00:18]} Nd7 {[%emt 0:01:34]} 16. Bf4 {[%emt 0:00:41]} Re8 {[%emt 0:04:23]} 17. g4 {[%emt 0:08:04]} (17. d4 $14) 17... Nf8 {[%emt 0:01:21]} 18. Be3 {[%emt 0:04:10]} b6 {[%emt 0:03:04]} 19. g5 {[%emt 0:11:56]} hxg5 {[%emt 0:02:51]} 20. d4 {[%emt 0:00:34]} cxd4 {[%emt 0:04:50]} 21. cxd4 {[%emt 0:00:09][%cal Bc3d4,Bd4d5][%mdl 32] Black should prevent d5.} Bc4 {[%emt 0:04:36]} 22. Rf5 {[%emt 0:01:48][%mdl 1024] White has compensation.} Nh7 {[%emt 0:01:00]} 23. d5 {[%emt 0:03:58]} Qe7 {[%emt 0:03:36]} ({Black should play} 23... c6) 24. Bd4 {[%emt 0:03:10]} (24. Rc1 $142 $1 {[%cal Rc1c4]} b5 25. axb5) 24... Rad8 {[%emt 0:02:07]} 25. Qc2 {[%emt 0:03:20]} Ba6 {[%emt 0:01:17]} 26. Rc1 {[%emt 0:00:06] White is more active.} c5 {[%emt 0:03:10]} 27. Bc3 {[%emt 0:01:25]} Bc8 {[%emt 0:00:55] [#]} 28. Rf3 {[%emt 0:04:21]} Nf8 $2 {[%emt 0:02:30][%mdl 8192] Loses the game.} (28... Ba6 $16) 29. Rcf1 $18 {[%emt 0:01:50]} Ng6 $2 {[%emt 0:03:42]} (29... Be6 30. dxe6 fxe6) 30. Rxf7 {[%emt 0:00:09]} Qxf7 {[%emt 0:00:10]} 31. Rxf7 {[%emt 0:00:05]} Kxf7 {[%emt 0:00:10]} 32. Qf2+ {[%emt 0:04:22]} Kg8 {[%emt 0:00:20]} 33. Qg3 {[%emt 0:01:21]} Nf4 {[%emt 0:01:21] Hoping for ...Ne2+.} 34. Bf1 {[%emt 0:00:32] Inhibits Ne2+.} Bxh3 {[%emt 0:01:57]} 35. Qxg5 {[%emt 0:01:42] Intending e6 and mate.} Rf8 {[%emt 0:00:59]} (35... Ne6 $142 36. Qg3 Bxf1) 36. Bc4 {[%emt 0:04:15] White threatens e6 and mate.} ({Don't blunder} 36. e6 $2 {[#]} Nxe6 $1 37. Qe5 (37. dxe6 $2 Rxf1+ 38. Kh2 Rf2+ 39. Kg1 Rg2+ 40. Qxg2 Rd1+ 41. Kf2 Bxg2 $19) 37... Rxf1+ $19) 36... Bc8 {[%emt 0:01:06]} 37. Kh1 {[%emt 0:04:50] Threatening mate with e6.} Bb7 {[%emt 0:01:34]} 38. Kh2 {[%emt 0:05:51] White mates.} g6 {[%emt 0:01:04]} 39. e6 {[%emt 0:00:28]} Rde8 {[%emt 0:00:24]} 40. Qh6 {[%emt 0:01:56][%csl Gc3][%cal Rh6g7]} Re7 {[%emt 0:00:24]} 41. Qh8# {[%emt 0:30:11] Weighted Error Value: White=0.18 (very precise) /Black=0.62} 1-0

[Event "USA Championship Women 2022"]
[Site "Saint Louis"]
[Date "2022.10.11"]
[Round "6.5"]
[White "Paikidze, Nazi"]
[Black "Yan, Ruiyang"]
[Result "0-1"]
[ECO "B42"]
[WhiteElo "2354"]
[BlackElo "2220"]
[Annotator "TA"]
[PlyCount "108"]
[EventDate "2022.09.05"]
[EventType "tourn"]
[EventCountry "USA"]
[SourceTitle "playchess.com"]
[Source "ChessBase"]
[SourceQuality "1"]
[TimeControl "40/5400+30:1800+30"]

{[%evp 22,108,49,38,48,40,58,38,44,38,55,35,36,33,31,27,43,18,49,46,53,53,48,43,51,7,25,22,18,0,11,-16,135,-68,0,0,0,-43,-49,-44,-17,-156,-147,-151,-158,-143,-97,-372,-388,-748,-741,-722,-431,-389,-400,-557,-559,-645,-645,-643,-633,-644,-640,-601,-391,-29978,-1224,-29987,-29988,-29988,-29985,-29989,-29986,-29986,-29987,-29987,-29988,-29988,-29989,-29990,-29989,-29992,-29993,-29993,-29994,-29994,-29995,-29995,-29996]} 1. e4 {[%emt 0:00:03]} c5 {[%emt 0:00:17]} 2. Nf3 {[%emt 0:00:07]} e6 {[%emt 0:01:19]} 3. d4 {[%emt 0:00:07]} cxd4 {[%emt 0:00:05]} 4. Nxd4 {[%emt 0:00:03]} a6 {[%emt 0:00:25]} 5. Bd3 {[%emt 0:00:13]} Nf6 {[%emt 0:00:18]} 6. O-O {[%emt 0:00:19]} d6 {[%emt 0:00:06]} 7. c4 {[%emt 0:02:16]} Be7 {[%emt 0:00:12]} 8. Nc3 {[%emt 0:00:34]} O-O {[%emt 0:00:32]} 9. Qe2 {[%emt 0:01:21]} b6 {[%emt 0:00:31]} 10. Be3 {[%emt 0:09:42]} Bb7 {[%emt 0:00:22]} 11. f3 {[%emt 0:11:06]} Nbd7 {[%emt 0:00:27]} 12. Rac1 {[%emt 0:03:42]} Rc8 {[%emt 0:02:23] B42: Sicilian: Kan Variation: 5 Bd3.} 13. Bb1 {[%emt 0:02:19]} Qc7 {[%emt 0:01:59]} 14. Rfd1 {[%emt 0:03:52]} Qb8 {[%emt 0:01:39] White is slightly better.} 15. b3 {[%emt 0:07:49]} Bd8 {[%emt 0:01:22] [#]} 16. Bf2 $146 {[%emt 0:08:09]} ({Predecessor:} 16. g4 Re8 17. g5 Nh5 18. f4 g6 19. Qg4 Bc7 20. Rf1 Re7 21. Rf3 Rf8 22. Rh3 {0-1 (39) Klima,L (2306)-Mikhaletz,L (2513) Czech Republic 2001}) 16... Bc7 {[%emt 0:08:06]} 17. f4 {[%emt 0:01:37]} Rfe8 {[%emt 0:02:26]} (17... e5 18. Nf5 $16) 18. Nf3 {[%emt 0:05:01]} Qa8 {[%emt 0:09:35][%cal Ob6b5]} 19. Nd2 {[%emt 0:06:30]} Bc6 {[%emt 0:05:34]} 20. a4 {[%emt 0:02:45]} Nf8 {[%emt 0:02:28]} 21. b4 {[%emt 0:03:53]} Ng6 {[%emt 0:02:34]} 22. g3 {[%emt 0:01:21]} Bb7 {[%emt 0:00:54]} 23. c5 {[%emt 0:02:07]} bxc5 {[%emt 0:12:55]} (23... dxc5 {is interesting.} 24. bxc5 bxc5 25. e5 Nd7) 24. bxc5 {[%emt 0:00:04]} dxc5 {[%emt 0:04:18]} 25. Nc4 {[%emt 0:00:15]} h5 {[%emt 0:02:07]} 26. Bxc5 {[%emt 0:05:21] [#]} Qb8 $2 {[%emt 0:18:07]} (26... Bxf4 $1 $11 27. Nb6 Bxc1 28. Nxa8 Rxc5 29. Rxc1 Bxa8) 27. Bd6 $2 {[%emt 0:05:46]} (27. e5 $16 Bxe5 28. fxe5 Nxe5 29. Qxe5 (29. Nxe5 Rxc5 30. Nd7 Nxd7 $16) 29... Qxe5 30. Nxe5 Rxc5 31. Nd7 Nxd7 32. Rxd7) 27... Qa7+ {[%emt 0:04:28]} ({Black should try} 27... Ng4 $1 $15) 28. Qf2 {[%emt 0:01:31]} Bb8 {[%emt 0:04:06]} 29. Nb6 {[%emt 0:09:56]} Ng4 {[%emt 0:02:06]} 30. Bxb8 $1 {[%emt 0:01:05]} ({Not} 30. Qd4 $2 Bxd6 31. Nxc8 Qxd4+ 32. Rxd4 Bc5 $19) 30... Rxb8 {[%emt 0:00:11]} 31. Qd4 {[%emt 0:01:45]} (31. Qc5 $1 $11 {was the only way to keep the balance.}) 31... e5 $17 {[%emt 0:00:24]} 32. fxe5 {[%emt 0:00:36]} N6xe5 {[%emt 0:00:12]} 33. Kg2 {[%emt 0:00:39] [#] Prevents Nf3.} Bxe4+ {[%emt 0:04:11]} 34. Qxe4 {[%emt 0:01:21][%mdl 8192] Loses the game.} (34. Bxe4 $17 Qxb6 35. Qxb6 Rxb6 36. Nd5 Rb2+ 37. Rc2 Rxc2+ 38. Bxc2) 34... Ng6 $19 {[%emt 0:00:29] Dancing on a razor blade.} (34... Rxb6 {leads to mate.} 35. Qh7+ Kf8 36. Qh8+ Ke7 37. Nd5+ Kd7 38. Nc7+ Kc8 39. Qxe8+ (39. Bf5+ Kb7 $17) 39... Kb7 40. Be4+) 35. Rd7 $2 {[%emt 0:02:04]} (35. Qd4 Ne3+ 36. Kh3) 35... Qxb6 {[%emt 0:00:38]} 36. Qd4 {[%emt 0:00:29] Inhibits Qf2+.} Qxd4 {[%emt 0:00:34]} 37. Rxd4 {[%emt 0:00:01]} Rb2+ {[%emt 0:00:10]} 38. Kg1 {[%emt 0:00:54]} Nxh2 {[%emt 0:00:20] aiming for ...Nf3+.} 39. Be4 {[%emt 0:02:01] Prevents Nf3+.} Ne5 {[%emt 0:00:12]} 40. Rd5 {[%emt 0:00:42]} Nhf3+ {[%emt 0:01:41]} 41. Bxf3 {[%emt 0:02:39]} Nxf3+ {[%emt 0:00:06]} 42. Kf1 {[%emt 0:00:03]} g6 {[%emt 0:04:06]} 43. Rd6 $2 {[%emt 0:02:52]} (43. Rd3 $19 Nh2+ 44. Kg1) 43... Re3 {[%emt 0:01:27] ( -> ...Nh2+)} 44. a5 {[%emt 0:05:44]} Nh2+ {[%emt 0:00:18] Black mates.} 45. Kg1 {[%emt 0:00:04]} Rxg3+ {[%emt 0:00:05]} 46. Kh1 {[%emt 0:00:03]} Ng4 {[%emt 0:01:06][%csl Gg4][%cal Rb2h2]} 47. Ne2 {[%emt 0:01:04]} Rh3+ {[%emt 0:00:05]} 48. Kg2 {[%emt 0:00:41]} Rh2+ {[%emt 0:00:05]} 49. Kg3 {[%emt 0:01:50]} Rbxe2 {[%emt 0:00:09]} 50. Rc3 {[%emt 0:02:15]} Rhg2+ {[%emt 0:01:20]} 51. Kh3 {[%emt 0:00:07]} Rg1 {[%emt 0:00:35][%csl Gg4][%cal Re2h2]} 52. Kh4 {[%emt 0:00:42]} Ne3 {[%emt 0:00:34][%cal Re2h2]} 53. Rd8+ {[%emt 0:00:51]} Kg7 {[%emt 0:00:05][%cal Re2h2]} 54. Kh3 {[%emt 0:01:24]} Nf1 {[%emt 0:00:07] Weighted Error Value: White=0.91/Black=0.37} 0-1